Cogmind - Beta 15 @@@ ROGUE MODE // 2025.05.08 @ 16:43:34 Player: Skysub Result: Destroyed by Triborg with Siege Cannon Performance ------------- Evolutions (0) 0 Regions Visited (3) 600 Robots Destroyed (17) 85 Value Destroyed (197) 197 Prototype IDs (0) 0 Alien Tech Used (0) 0 Bonus (300) 300 TOTAL SCORE: 1182 Bonus ------- Registered with UFD 300 Cogmind --------- Core Integrity 0/250 Matter 300/300 Energy 100/100 System Corruption 1% Temperature Cool (0) Movement Core (350) Ox6 Location -7/Scraptown Parts ------- > --- POWER (1) -------- (None) > --- PROPULSION (2) --- (None) > --- UTILITY (2) ------ Large Storage Unit > --- WEAPON (2) ------- (None) > --- INVENTORY (15) --- Improved Ion Engine Light Treads Light Treads Improved Treads Subdweller Monowheel Sensor Array Signal Interpreter Kinecellerator Layered Light Armor Plating Hacking Suite Hacking Suite Subdweller Beam Cannon Light Assault Rifle Rocket Launcher Makeshift Sword Peak State ------------ > --- POWER ------------ Deuterium Engine > --- PROPULSION ------- Wheel Wheel > --- UTILITY ---------- Large Storage Unit Improved Terrain Scanner > --- WEAPON ----------- Pulse Rifle Assault Rifle > --- INVENTORY -------- Light Ion Engine Light Treads Light Treads Improved Treads Subdweller Monowheel Sensor Array Signal Interpreter Advanced Melee Analysis Suite Layered Light Armor Plating Hacking Suite Hacking Suite Subdweller Beam Cannon Light Assault Rifle Rocket Launcher Mining Claw [Rating: 16] Favorites ----------- Power Light Ion Engine Engine Light Ion Engine Propulsion Wheel Wheel Wheel Utility Large Storage Unit Device Structural Scanner Storage Large Storage Unit Weapon Medium Laser Energy Gun Medium Laser Ballistic Gun Assault Rifle Slashing Weapon Mining Claw Build | -11 -10 -10 -7 ------- Run | Yrd Mat Sub Scr Slots Evolved . | . . . . Power . | . . . . Propulsion . | . . . . Utility . | . . . . Weapon . | . . . . Parts Attached 16 | 7 6 . 3 Power 3 | 1 1 . 1 Engine 3 | 1 1 . 1 Core . | . . . . Reactor . | . . . . Propulsion 3 | 2 1 . . Treads . | . . . . Leg . | . . . . Wheel 3 | 2 1 . . Hover . | . . . . Flight . | . . . . Utility 5 | 2 3 . . Device 2 | 1 1 . . Storage 3 | 1 2 . . Processor . | . . . . Hackware . | . . . . Protection . | . . . . Artifact . | . . . . Weapon 5 | 2 1 . 2 Energy Gun 3 | 2 . . 1 Energy Cannon . | . . . . Ballistic Gun 1 | . . . 1 Ballistic Cannon . | . . . . Launcher . | . . . . Special Weapon . | . . . . Impact Weapon . | . . . . Slashing Weapon 1 | . 1 . . Piercing Weapon . | . . . . Special Melee Weapon . | . . . . Unidentified Prototypes . | . . . . Parts Lost 8 | . 2 . 6 Power 2 | . 1 . 1 Propulsion 3 | . 1 . 2 Utility 1 | . . . 1 Weapon 2 | . . . 2 Highest Loss Streak 5 | . 1 . 5 To Critical Strikes . | . . . . Average Backups 10 | 1 6 9 13 Power . | . . 1 1 Propulsion 2 | 1 2 2 3 Utility 3 | . 2 3 4 Weapon 3 | . 1 2 4 Tool/Special . | . . . . Unused Backups 18 | . . . 18 Power 2 | . . . 2 Propulsion 4 | . . . 4 Utility 8 | . . . 8 Weapon 4 | . . . 4 Tool/Special . | . . . . Average Slot Usage (%) 97 | . 93 100 98 Engine 13 | . 13 14 13 Wheel 26 | . 22 28 27 Device 13 | . 14 14 13 Storage 14 | . 14 14 14 Energy Gun 20 | . 21 28 18 Ballistic Gun 5 | . . . 8 Slashing Weapon 1 | . 6 . . Peak Build Rating 16 | 9 9 8 16 Average Rating 9 | 5 7 8 12 On Entrance 6 | . 9 8 8 Naked Turns . | . . . . Heaviest Build 35 | 14 30 27 35 Greatest Support 20 | 20 20 20 20 Greatest Overweight (x) 6 | . 2 1 6 Average Overweight (x) . | . . 1 1 Largest Inventory Capacity 15 | 8 15 15 15 Average Capacity 13 | 7 12 15 15 Most Carried 15 | 2 8 10 15 Average Carried 10 | 1 6 9 13 Final Capacity 15 | 8 15 15 15 Final Carried 15 | 2 8 10 15 Class Distribution -------------------- 100% | Mutant Dominant Class ---------------- Mutant | -10/Materials Mutant | -10/Subcaves Mutant | -7/Scraptown Resources | -11 -10 -10 -7 ----------- Run | Yrd Mat Sub Scr Matter Collected 415 | 270 85 8 52 Remotely . | . . . . Salvage Created 479 | 156 323 . . Parts 30 | 7 23 . . Haulers Intercepted 2 | . 2 . . Recyclers Shooed . | . . . . Parts Field Recycled . | . . . . Retrieved Matter . | . . . . Parts Self-Destructed . | . . . . Prevented . | . . . . Kills | -11 -10 -10 -7 ------- Run | Yrd Mat Sub Scr Combat Hostiles Destroyed 8 | . 8 . . Guns 8 | . 8 . . Classes Destroyed 7 | 2 5 . . Builder 1 | . 1 . . Tunneler 4 | 4 . . . Hauler 2 | . 2 . . Recycler 1 | 1 . . . Watcher 1 | . 1 . . Swarmer 6 | . 6 . . Grunt 2 | . 2 . . Best Kill Streak 6 | 5 6 . . Combat Bots Only 5 | . 5 . . Max Kills in Single Turn 2 | 1 2 . . Gunslinging 1 | . 1 . . Exploded . | . . . . Melee . | . . . . Uniques/NPCs Destroyed . | . . . . Combat | -11 -10 -10 -7 -------- Run | Yrd Mat Sub Scr Hostile Shots Fired 63 | . 36 2 25 Missed 12 | . 7 1 4 Hits 51 | . 29 1 21 Projectile 51 | . 29 1 21 Critical Strikes 2 | . . . 2 Damage Taken 1026 | . 327 78 621 Core 303 | . 70 78 155 Absorbed by Shields . | . . . . Regen/Repaired (Parts) 144 | . . . 144 Core Remaining (%) 100 | 100 . . . Volleys Fired 36 | 10 26 . . Largest 2 | 2 2 . . Hottest 90 | 90 90 . . Shots Fired 71 | 20 50 . 1 Gun 71 | 20 50 . 1 Cannon . | . . . . Launcher . | . . . . Special . | . . . . Kinetic 1 | . . . 1 Thermal 70 | 20 50 . . Explosive . | . . . . Electromagnetic . | . . . . Robot Hit Streak 16 | 6 16 . 8 Robot Miss Streak 4 | 4 3 . . Penetration Max . | . . . . Secondary Targets 3 | . 3 . . Max Gunslinging Chain 1 | . 1 . . Shots Hit Robots 54 | 12 41 . 1 Core Hits 21 | 6 15 . . Critical Kills . | . . . . Critical Parts Destroyed . | . . . . Critical Strikes 1 | . 1 . . Burn 1 | . 1 . . Melee Attacks 6 | . 6 . . Impact . | . . . . Slashing 6 | . 6 . . Piercing . | . . . . Sneak Attacks 2 | . 2 . . Combat Hostiles . | . . . . Follow-up Attacks . | . . . . Damage Inflicted 741 | 164 577 . . Guns 617 | 164 453 . . Cannons . | . . . . Explosions . | . . . . Melee 124 | . 124 . . Ramming . | . . . . Kinetic . | . . . . Thermal 617 | 164 453 . . Explosive . | . . . . Electromagnetic . | . . . . Impact . | . . . . Slashing 124 | . 124 . . Piercing . | . . . . Highest Corruption 1 | . 1 1 1 Average Corruption 1 | . 1 1 1 Corruption Purged . | . . . . Corruption Blocked . | . . . . Effects 12 | . 1 3 8 Message Errors 3 | . . . 3 Matter Fused 3 | . . 2 1 Heat Flow Errors 1 | . . . 1 Energy Discharges 3 | . 1 1 1 Parts Fused 1 | . . . 1 Misfires 1 | . . . 1 Overload Shots . | . . . . Overflow Damage . | . . . . Projectiles . | . . . . Explosions . | . . . . Melee . | . . . . Knockbacks . | . . . . Impact . | . . . . Kinetic . | . . . . Secondary . | . . . . Self-Inflicted Damage . | . . . . Shots . | . . . . Rammed . | . . . . Targets Rammed . | . . . . Kicked . | . . . . Crushed . | . . . . Highest Temperature 300 | 300 240 . 233 Average Temperature 92 | 163 63 . 108 Received Heat Transfer 273 | . 60 . 213 Siege Activations . | . . . . Martial Activations . | . . . . Shielding Activations . | . . . . Robots Disrupted . | . . . . Combat Hostiles . | . . . . Robots Corrupted . | . . . . Combat Hostiles . | . . . . Parts Fried . | . . . . Impact Corruptions . | . . . . Robots Melted . | . . . . Combat Hostiles . | . . . . Parts Melted 5 | 3 2 . . Heat Transferred 1770 | 458 1312 . . Parts Sabotaged . | . . . . Parts Stolen . | . . . . Parts Stripped . | . . . . Power Chain Reactions . | . . . . Alert | -11 -10 -10 -7 ------- Run | Yrd Mat Sub Scr Maximum Alert Level . | . . . . Low Security (%) 100 | 100 100 . . Level 1 . | . . . . Level 2 . | . . . . Level 3 . | . . . . Level 4 . | . . . . Level 5 . | . . . . High Security . | . . . . Max Security . | . . . . Peak Influence 107 | 15 107 . . Initial 6 | . 6 . . Average 45 | 3 52 . . Influence Increases 272 | 25 247 . . Destroy 0b10 Robot/C 160 | . 160 . . Destroy 0b10 Robot/NC 45 | 25 20 . . Destroy Leader 36 | . 36 . . Disable Machine 15 | . 15 . . Destroy Structure 1 | . 1 . . Lose Combat Pursuer 15 | . 15 . . Influence Decreases 272 | 15 221 36 . Entered New Map 22 | . 4 18 . Time Decay 230 | 15 197 18 . Lost Part 20 | . 20 . . Squads Dispatched 1 | . 1 . . Investigation . | . . . . Extermination . | . . . . Reinforcement 1 | . 1 . . Assault . | . . . . Garrison . | . . . . Intercept . | . . . . Searches Triggered . | . . . . Construction Impeded . | . . . . Haulers Reinforced . | . . . . Active Scanning Responses . | . . . . Cargo Convoy Interrupts . | . . . . Stealth | -11 -10 -10 -7 --------- Run | Yrd Mat Sub Scr Distress Signals . | . . . . Communications Jammed . | . . . . Distress Signals . | . . . . Times Spotted 15 | . 9 2 4 Peak Tracking Total 14 | . 4 2 14 Tactical Retreats 1 | . 1 . . Traps | -11 -10 -10 -7 ------- Run | Yrd Mat Sub Scr Traps Triggered 3 | . 2 1 . Indirectly . | . . . . Trap Hack Attempts . | . . . . Triggered . | . . . . Disarmed . | . . . . Reprogrammed . | . . . . Reused . | . . . . Traps Extracted . | . . . . Installed . | . . . . Triggered . | . . . . Machines | -11 -10 -10 -7 ---------- Run | Yrd Mat Sub Scr Machines Disabled 1 | . 1 . . Max in Single Turn 1 | . 1 . . Machines Repaired . | . . . . Machines Dismantled . | . . . . Machines Sabotaged . | . . . . Overloaded Fab Kills . | . . . . Hacking | -11 -10 -10 -7 --------- Run | Yrd Mat Sub Scr Machines Accessed 2 | . 2 . . Terminals 2 | . 2 . . Fabricators . | . . . . Repair Stations . | . . . . Recycling Units . | . . . . Scanalyzers . | . . . . Garrison Access . | . . . . Total Hacks 7 | . 7 . . Successful . | . . . . Failed 7 | . 7 . . Catastrophic 2 | . 2 . . Database Lockouts . | . . . . Manual 3 | . 3 . . Terminals 7 | . 7 . . Fabricators . | . . . . Repair Stations . | . . . . Recycling Units . | . . . . Scanalyzers . | . . . . Garrison Access . | . . . . Terminal Hacks . | . . . . Fabricator Hacks . | . . . . Repair Station Hacks . | . . . . Recycling Unit Hacks . | . . . . Scanalyzer . | . . . . Garrison Access Hacks . | . . . . Unauthorized Hacks . | . . . . Terminals . | . . . . Fabricators . | . . . . Repair Stations . | . . . . Recycling Units . | . . . . Scanalyzers . | . . . . Garrison Access . | . . . . Data Cores Recovered . | . . . . Used . | . . . . Hacking Detections 2 | . 2 . . Full Trace Events 1 | . 1 . . Feedback Events . | . . . . Feedback Blocked . | . . . . Robot Schematics Acquired . | . . . . Robots Built . | . . . . Authchips . | . . . . Time . | . . . . Total Robot Build Rating . | . . . . Part Schematics Acquired . | . . . . Parts Built . | . . . . Authchips . | . . . . Time . | . . . . Total Part Build Rating . | . . . . Parts Repaired . | . . . . Time . | . . . . Parts Recycled . | . . . . Recycled Matter . | . . . . Retrieved Matter . | . . . . Retrieved Components . | . . . . Parts Scanalyzed . | . . . . Part Schematics Acquired . | . . . . Parts Damaged . | . . . . Bothacking | -11 -10 -10 -7 ------------ Run | Yrd Mat Sub Scr Used RIF Installer . | . . . . Robots Hacked . | . . . . Non-combat . | . . . . Combat . | . . . . Robot Hacks Applied . | . . . . Relay Couplers Released . | . . . . Fabnet Peak Effective % . | . . . . Robots Rewired . | . . . . Allies Hacked . | . . . . Hacks Repelled . | . . . . Allies | -11 -10 -10 -7 -------- Run | Yrd Mat Sub Scr Total Allies . | . . . . Largest Group . | . . . . Highest-Rated Group . | . . . . Highest-Rated Ally . | . . . . Total Orders . | . . . . Ally Attacks . | . . . . Total Damage . | . . . . Kills . | . . . . Allies Corrupted . | . . . . Allies Melted . | . . . . Intel | -11 -10 -10 -7 ------- Run | Yrd Mat Sub Scr Active Infowar (turns) 1616 | 7 489 224 896 Terrain 406 | 7 56 . 343 Structural 1210 | . 433 224 553 Robot Analysis Total . | . . . . Derelict Logs Recovered 3 | . . 1 2 Drone Launches . | . . . . Drone Recoveries . | . . . . Exploration | -11 -10 -10 -7 ------------- Run | Yrd Mat Sub Scr Turns Passed 1709 | 94 489 224 902 Spaces Moved 1588 | 65 371 227 925 Core 6 | 5 . . 1 Treads . | . . . . Legs . | . . . . Wheels 1582 | 60 371 227 924 Hover . | . . . . Flight . | . . . . Fastest Speed 50 | 50 80 95 95 Average Speed 94 | 77 94 95 95 Slowest Speed 350 | 80 110 95 350 Overloaded Moves . | . . . . Propulsion Burnouts . | . . . . Robots Hopped . | . . . . Potential Cave-ins . | . . . . Cave-ins Triggered . | . . . . Exploration Rate (%) 37 | 4 67 20 60 Regions Visited 3 Branch Regions 2 Pre-discovered Areas 2 | . . 1 1 Known Exits Taken . | . . . . Unknown Exits Taken 3 | 1 1 1 . Scrap Searched 10 | . . 2 8 Spaces Dug 1 | . 1 . . Terrain Destroyed 1 | . 1 . . Melee 1 | . 1 . . Projectile . | . . . . AOE . | . . . . Terrain Rammed . | . . . . Walls Destroyed . | . . . . Machines Disabled . | . . . . Actions | -11 -10 -10 -7 --------- Run | Yrd Mat Sub Scr Total 1712 | 84 443 233 952 Wait 33 | 1 24 5 3 Move 1585 | 64 370 226 925 Hop . | . . . . Pick Up 20 | 2 6 2 10 Fast Attach 11 | 7 2 . 2 Attach 1 | . . . 1 Detach 3 | . . . 3 Swap 8 | . 7 . 1 Drop 9 | . 2 . 7 Fire 36 | 10 26 . . Melee 6 | . 6 . . Ram . | . . . . Kick . | . . . . Crush . | . . . . Escape Stasis . | . . . . Rewire . | . . . . Trap . | . . . . Miscellaneous . | . . . . Route ------- -11/Scrapyard -10/Materials (discovered 3 exits: [*Mat] / [*Min] / [*Sub]) -10/Subcaves (discovered 2 exits: [*Mat] / *Scr) -7/Scraptown (discovered 1 exit: [*Fac]) History --------- Turn | Location | Event 4 | -11/Scrapyard | Discovered new exit (range 16) 95 | -11/Scrapyard | Entered Materials 259 | -10/Materials | Discovered new exit (range 15) 311 | -10/Materials | Build established: Mutant 568 | -10/Materials | Discovered new exit (range 6) 577 | -10/Materials | Discovered new exit (range 10) 584 | -10/Materials | Entered Subcaves 585 | -10/Subcaves | Approached by a straggling Scientist 610 | -10/Subcaves | Shifting Twisted Machinery released Sub. Beam Cannon 612 | -10/Subcaves | Shifting Twisted Machinery released Sub. Monowheel 687 | -10/Subcaves | Discovered new exit (range 13) 692 | -10/Subcaves | Learned location of Zion (-6) 692 | -10/Subcaves | Met a Zionite searching for "candidates" 692 | -10/Subcaves | Learned Materials non-interactive machine intel 790 | -10/Subcaves | Scientist uncovered a shortcut to Scraptown 796 | -10/Subcaves | Core integrity fell below 50% 808 | -10/Subcaves | Entered Scraptown 899 | -7/Scraptown | Visited UFD Registry 899 | -7/Scraptown | Registered with UFD as "Arcgunner" 918 | -7/Scraptown | Visited IN-MT5's Study 943 | -7/Scraptown | Visited Symbiants 1297 | -7/Scraptown | Visited Bundlers 1380 | -7/Scraptown | Visited CR-KLE's Repair Center 1386 | -7/Scraptown | CR-KLE repaired 7 parts 1405 | -7/Scraptown | Visited Comm Corps 1460 | -7/Scraptown | Scanned Subdweller tech in exchange for log data 1462 | -7/Scraptown | Learned location of Warlord (-5) 1463 | -7/Scraptown | Learned Research emergency access door positions 1477 | -7/Scraptown | Discovered new exit (range 5) 1657 | -7/Scraptown | Attacked by Scraptown defenders 1700 | -7/Scraptown | Core integrity fell below 20% 1710 | -7/Scraptown | Destroyed by Triborg with Siege Cannon Last Messages --------------- Acquired Imp. Ion Engine. System corrupted: FCS attempts to trigger Assault Rifle. System corrupted: Assault Rifle misfires. ANNOUNCEMENT: Intruder alert! Defend Scraptown! Machine disabled. YS-OKM(j) heat spikes uncontrollably. Deuterium Engine destroyed. Triborg activates siege mode. Penetrated by Siege Slug. Assault Rifle destroyed. Wheel destroyed. Imp. Terrain Scanner destroyed. Critical hit (Blast). Knocked back. Wheel destroyed. Pulse Rifle destroyed. Penetrated by Siege Slug. Knocked back. Penetrated by Siege Slug. Map ----- +----------------------------------------------------+ | # " "?????## ""#"#"????????????????? | | # " "?#?#?## """"#"????????????????? | | # ?" ""?#???## ""####????????????????? | | # ??"""""??????## ######????????????????? | | ##?????????????## ######????????????????? | | ##?????????????## ????????????????? | | ##??#?#?#??????## ???????????? | | ##????????#????## ??????????? | | ################# ?????????? | | ################# ??????????? | | TT ??????????? | | ?????????? | | ??????????? | | ??????????? | | ???????????? | | #""""#" ???????????? | | #"??"#"????????????? | | p #"?????????????????? | | ############# ########## ####"?????????????????? | | #### #### ####"?????????????????? | | #### ????## ##????????????????????? | | "#### ???## ##????????????????????? | | #### #### ##????????????????????? | | ""#### #### %##????????????????????? | | =["####" "#### ##????????????????????? | | ]%"##### " " ##### @%##????????????????????? | | [""##### # # ##?## ##????????????????????? | | ##?##########?## ##????????????????????? | | ## "##??#######???## ##????????????????????? | | !# "##????????????## ##????????????????????? | | ! !! ##??????######## #?????????????????????? | | ]#"%" "##??????"""""""" #?????????????????????? | | ]#""" ""###????""" """"" #?????????????????????? | | ##########????""" " "" #?????????????????????? | | ####### #??????"??????????????? | | #???#?? #???#"" "" "" " #?????????????????????? | | "????"" "???????"""""""" #?????????????????????? | | ""??""" "#???????"""""""j #?????????????????????? | | "?#""" "#??????#?###### j #?????????????????????? | | ""##"" "#?############# #??????????#??????????? | | ""##"" "#?#"""""""""""# #?????????????????????? | | ""##" "#?#""[ =* [! "# #?????????????????????? | | ""##"| "#?#""![*[![[ "# #?????????????????????? | | ""##"" "#?#"" "# #?????????????????????? | | ""##"" ""###""" """""""# #?#???????????????????? | | #?????????????????????? | | #?????????????????????? | | ######""" """##""" """#####?#???????????????????? | | "#????#"" |"##"" "#?????????????????????????? | | "#???##" ""##"" "#?????????????????????????? | +----------------------------------------------------+ Best States ------------- Heat Dissipation 25 Energy Generation 14 Energy Capacity 275 Matter Stores 300 Matter Capacity 300 Sight Range 16 Terrain Scan Range 16 Terrain Scan Density 10 Evasion (%) 44 Item Schematics ----------------- None Robot Schematics ------------------ None Fabricated ------------ Nothing Repaired ---------- Nothing Alien Tech Used ----------------- None Achievements -------------- None Challenges ------------ None Game ------ Seed ArmorBombFrame Manual? 0 Play Time 00:18:47 Cumulative 66.5 hours Start 2025.05.08 @ 16:25:41 End 2025.05.08 @ 16:43:34 Sessions 1 Manual Loads 0 Difficulty Rogue Special Mode None Game No. 60 Rogue 60 Adventurer 0 Explorer 0 Win Type - Total 1 Types 1/0/0/0/0/0/0/0/0/0 Lore% 39 Gallery% 45 Achievement% 42 Wizard Run 0 Options --------- Layout 1 ASCII 0 Keyboard 1 Movement Numpad Keybinds 0 Fullscreen 1 Font 32/SmallcapsGlow Map View 50x35 Zoom Use 0% Tactical HUD 0 Map Filters NONE Filters NONE Steam 1 RUN: aa02ff3c-3896-4599-a408-b706ca2e21db